[Event "SS Manhem Chess Week 2019 Elo tournaments"]
[Site "Molnlycke kulturhus, Biblioteksgatan 2, Molnlycke, Sweden"]
[Date "2019.08.16"]
[Round "7.7"]
[White "Jacobsson, Lennart"]
[Black "Berg, Roy"]
[Result "1/2-1/2"]
[TimeControl "90 minutes for 40 moves + 30 minutes for the rest of the game + 30 seconds per move from move one."]
[WhiteFideId "1753320"]
[BlackFideId "1711458"]
[WhiteElo "1754"]
[BlackElo "1913"]

1. e4 {[%clk 01:30:07]} {[%emt 00:00:42]} c6 {[%clk 01:30:49]} {[%emt
00:00:12]} 2. d4 {[%clk 01:30:28]} {[%emt 00:00:09]} d5 {[%clk 01:31:08]}
{[%emt 00:00:11]} 3. exd5 {[%clk 01:30:30]} {[%emt 00:00:28]} cxd5 {[%clk
01:31:01]} {[%emt 00:00:37]} 4. Bd3 {[%clk 01:30:57]} {[%emt 00:00:03]} Nc6
{[%clk 01:30:53]} {[%emt 00:00:38]} 5. c3 {[%clk 01:31:24]} {[%emt 00:00:03]}
Nf6 {[%clk 01:31:11]} {[%emt 00:00:12]} 6. Bf4 {[%clk 01:31:48]} {[%emt
00:00:06]} Bg4 {[%clk 01:21:48]} {[%emt 00:09:52]} 7. Qb3 {[%clk 01:32:09]}
{[%emt 00:00:10]} Qd7 {[%clk 01:22:02]} {[%emt 00:00:16]} 8. Nd2 {[%clk
01:31:44]} {[%emt 00:00:55]} e6 {[%clk 01:22:00]} {[%emt 00:00:32]} 9. Ngf3
{[%clk 01:31:59]} {[%emt 00:00:15]} Bxf3 {[%clk 01:22:21]} {[%emt 00:00:10]} 10.
Nxf3 {[%clk 01:32:14]} {[%emt 00:00:14]} Bd6 {[%clk 01:21:25]} {[%emt
00:01:26]} 11. Ne5 {[%clk 01:23:10]} {[%emt 00:09:34]} Qc7 {[%clk 01:15:29]}
{[%emt 00:06:26]} 12. Nxc6 {[%clk 01:11:35]} {[%emt 00:12:06]} bxc6 {[%clk
01:09:53]} {[%emt 00:06:05]} 13. Bxd6 {[%clk 01:11:30]} {[%emt 00:00:35]} Qxd6
{[%clk 01:07:59]} {[%emt 00:02:24]} 14. O-O {[%clk 01:11:34]} {[%emt 00:00:25]}
O-O {[%clk 01:08:21]} {[%emt 00:00:08]} 15. Rfe1 {[%clk 01:11:24]} {[%emt
00:00:40]} c5 {[%clk 00:59:42]} {[%emt 00:09:10]} 16. dxc5 {[%clk 01:10:46]}
{[%emt 00:01:08]} Qxc5 {[%clk 00:59:37]} {[%emt 00:00:34]} 17. Qc2 {[%clk
01:03:51]} {[%emt 00:07:25]} Qd6 {[%clk 00:57:29]} {[%emt 00:02:39]} 18. Qe2
{[%clk 01:02:17]} {[%emt 00:02:05]} Rab8 {[%clk 00:53:33]} {[%emt 00:04:26]} 19.
Rab1 {[%clk 00:59:34]} {[%emt 00:03:12]} Rb6 {[%clk 00:50:43]} {[%emt
00:03:20]} 20. Qe5 {[%clk 00:57:03]} {[%emt 00:03:01]} Qxe5 {[%clk 00:42:46]}
{[%emt 00:08:28]} 21. Rxe5 {[%clk 00:57:23]} {[%emt 00:00:10]} Rfb8 {[%clk
00:43:10]} {[%emt 00:00:06]} 22. Re2 {[%clk 00:53:35]} {[%emt 00:04:17]} Nd7
{[%clk 00:42:46]} {[%emt 00:00:55]} 23. Rc2 {[%clk 00:51:09]} {[%emt 00:02:55]}
Kf8 {[%clk 00:29:31]} {[%emt 00:13:46]} 24. Be2 {[%clk 00:48:18]} {[%emt
00:03:21]} Ne5 {[%clk 00:23:41]} {[%emt 00:06:20]} 25. b3 {[%clk 00:39:19]}
{[%emt 00:09:29]} Rc8 {[%clk 00:17:12]} {[%emt 00:06:59]} 26. f4 {[%clk
00:38:40]} {[%emt 00:01:08]} Nc4 {[%clk 00:08:16]} {[%emt 00:09:27]} 27. Rbc1
{[%clk 00:33:27]} {[%emt 00:05:43]} Na3 {[%clk 00:06:03]} {[%emt 00:02:43]} 28.
Rd2 {[%clk 00:33:21]} {[%emt 00:00:36]} Rbc6 {[%clk 00:06:17]} {[%emt
00:00:16]} 29. Rd3 {[%clk 00:22:38]} {[%emt 00:11:13]} Nb5 {[%clk 00:02:43]}
{[%emt 00:04:03]} 30. c4 {[%clk 00:22:02]} {[%emt 00:01:06]} Ke7 {[%clk
00:02:24]} {[%emt 00:00:50]} 31. Rh3 {[%clk 00:21:22]} {[%emt 00:01:10]} h6
{[%clk 00:02:31]} {[%emt 00:00:23]} 32. Rd1 {[%clk 00:20:19]} {[%emt 00:01:32]}
Nc7 {[%clk 00:02:22]} {[%emt 00:00:40]} 33. Rhd3 {[%clk 00:11:34]} {[%emt
00:09:14]} Kf6 {[%clk 00:02:45]} {[%emt 00:00:08]} 34. Bf3 {[%clk 00:06:28]}
{[%emt 00:05:36]} Ra6 {[%clk 00:02:25]} {[%emt 00:00:50]} 35. R3d2 {[%clk
00:04:29]} {[%emt 00:02:28]} Ra3 {[%clk 00:02:23]} {[%emt 00:00:33]} 36. Rc1
{[%clk 00:02:05]} {[%emt 00:02:53]} 1/2-1/2